bitfinex-derivatives/quotes_ETHF0:USTF0_20250828
["timestamp","ask_amount","ask_price","bid_price","bid_amount"]
[1756424282375,31.997,4502.1,4500.1,4.3684]
[1756424282672,0.85045224,4502.0,4500.2,0.1669]
[1756424282874,0.227,4502.7,4500.2,0.9999]
[1756424283171,0.85045638,4502.6,4500.3,0.1669]
[1756424283481,0.2815,4502.6,4500.7,0.1669]
[1756424283682,0.2815,4502.6,4500.8,0.16]
[1756424283980,0.227,4502.7,4500.5,0.1669]
[1756424283981,0.4742,4501.0,4500.5,0.1669]
[1756424284178,0.4742,4500.6,4500.5,0.047]
[1756424284874,0.4742,4500.6,4499.9,0.1669]
[1756424285274,0.4742,4500.6,4500.0,0.227]
[1756424287683,0.4742,4500.6,4499.9,0.1669]
[1756424287983,0.1895,4500.0,4499.9,0.5931]
[1756424288183,0.4896,4500.0,4499.9,0.5931]
[1756424288976,0.05,4501.8,4498.9,2.15471868]
[1756424289183,0.4896,4499.0,4498.9,0.3661]
[1756424289485,0.4896,4499.0,4498.9,0.5931]
[1756424292886,0.3001,4500.7,4499.0,0.167]
[1756424293092,0.3001,4500.5,4499.0,0.167]
[1756424294390,0.3001,4500.9,4499.2,0.167]
[1756424294586,0.3001,4500.7,4499.2,0.167]
[1756424295688,0.3001,4500.7,4499.3,0.227]
[1756424296000,0.3001,4500.7,4499.4,0.167]
[1756424302988,0.4896,4499.5,4499.4,0.3662]
[1756424303497,0.4896,4499.5,4498.8,31.996]
[1756424303498,0.3001,4498.9,4498.8,31.996]
[1756424303689,0.3001,4498.9,4498.8,32.39]
[1756424303889,0.3001,4501.1,4498.8,32.223]
[1756424304089,0.3001,4500.9,4498.9,0.167]
[1756424304393,0.3001,4500.7,4498.9,0.167]
[1756424304593,0.3001,4500.5,4498.9,0.167]
[1756424304792,0.3001,4500.3,4498.9,0.167]
[1756424305586,0.1895,4499.0,4498.9,0.3662]
[1756424305792,0.4896,4499.0,4498.9,0.3662]
[1756424307195,0.4896,4499.0,4498.9,0.227]
[1756424308295,0.4896,4499.0,4498.9,0.5932]
[1756424311403,0.4896,4499.0,4498.9,0.227]
[1756424311894,1.19021121,4501.2,4498.9,0.5932]
[1756424312100,0.3001,4501.0,4498.9,0.5932]
[1756424312298,0.3001,4500.8,4499.0,0.167]
[1756424312497,0.3001,4500.6,4499.0,0.167]
[1756424312794,0.3001,4500.4,4499.0,0.167]
[1756424312997,0.3001,4500.4,4499.4,0.40002]
[1756424313203,0.3001,4501.7,4500.4,0.167]
[1756424313398,0.3001,4501.7,4500.6,0.167]
[1756424313594,0.3001,4501.7,4500.7,0.12]
[1756424313903,0.3001,4501.7,4500.8,0.167]
[1756424317599,0.4896,4501.7,4501.6,0.1992]
[1756424317804,0.4896,4501.7,4501.6,0.3669]
[1756424318297,0.3096,4503.4,4501.7,0.1677]
[1756424318505,0.3096,4503.2,4501.7,0.1677]
[1756424320003,0.5366,4504.3,4501.7,0.1677]
[1756424320200,0.3096,4504.1,4502.0,0.1677]
[1756424320407,0.3096,4504.1,4502.2,0.1677]
[1756424320705,0.3096,4504.2,4502.2,0.1677]
[1756424320906,0.3096,4504.4,4502.4,0.1677]
[1756424321101,0.3096,4504.2,4502.4,0.1677]
[1756424321302,0.227,4504.5,4502.5,0.1677]
[1756424321303,0.3096,4504.4,4502.5,0.1677]
[1756424321506,0.53166,4504.4,4502.5,0.1677]
[1756424321706,0.22205,4504.3,4502.5,0.1677]
[1756424322007,0.3096,4504.2,4502.5,0.1677]
[1756424325313,0.53166,4504.2,4502.5,0.1677]
[1756424328514,0.3096,4504.0,4502.5,0.1677]
[1756424329410,31.995,4506.5,4502.7,0.99932]
[1756424329613,0.3096,4506.3,4503.3,0.1677]
[1756424329807,0.3096,4506.1,4503.5,0.1677]
[1756424330009,0.3096,4505.9,4503.5,0.1677]
[1756424330314,0.3096,4505.7,4503.5,0.1677]
[1756424330917,0.3096,4505.5,4503.5,0.1677]
[1756424331120,0.4016,4505.5,4503.5,0.1677]
[1756424331417,0.5086,4503.6,4503.5,0.3718]
[1756424331611,0.5086,4503.6,4503.3,0.226]
[1756424332207,0.199,4503.4,4503.3,0.3718]
[1756424332413,0.5086,4503.4,4503.3,0.3718]
[1756424332815,0.052,4505.1,4503.4,0.1677]
[1756424333009,0.199,4503.5,4503.4,0.3718]
[1756424333320,0.5086,4503.5,4503.4,0.3718]
[1756424333716,0.3096,4505.0,4503.5,0.1677]
[1756424333923,0.5086,4503.6,4503.5,0.3718]
[1756424334718,0.5086,4503.4,4503.3,0.226]
[1756424334919,0.5086,4503.4,4502.8,0.1677]
[1756424335216,0.5086,4503.4,4502.9,0.226]
[1756424337020,0.199,4502.8,4502.7,0.226]
[1756424337221,0.5086,4502.8,4502.7,0.226]
[1756424337620,0.5086,4502.8,4502.7,0.5978]
[1756424338022,0.3096,4504.3,4502.7,0.4301]
[1756424338319,0.3096,4504.2,4502.8,0.1677]
[1756424340423,0.5086,4502.9,4502.8,0.3718]
[1756424340624,0.5086,4502.9,4502.8,0.5978]
[1756424341716,0.5086,4502.9,4502.8,0.3718]
[1756424342026,0.5086,4502.5,4502.4,32.1627]
[1756424342225,0.3096,4504.6,4502.4,32.221]
[1756424342426,0.3096,4504.4,4502.5,0.1677]
[1756424342624,0.3096,4504.2,4502.5,0.1677]
[1756424342825,0.3096,4504.0,4502.5,0.1677]
[1756424343227,0.055,4504.8,4502.5,0.1677]
[1756424343228,0.5698954,4503.9,4502.5,0.1677]
[1756424343428,0.8794954,4503.8,4502.5,0.1677]
[1756424343727,0.3096,4503.8,4502.5,0.1677]
[1756424343923,0.3096,4502.9,4502.5,0.3718]
[1756424344124,0.3096,4504.5,4502.6,0.1677]
[1756424344319,0.22204001,4504.6,4502.6,0.1677]
[1756424344320,0.3096,4504.3,4502.6,0.1677]
[1756424344522,0.3096,4504.1,4502.6,0.1677]
[1756424344721,0.3096,4503.9,4502.7,0.22204]
[1756424345028,0.5086,4503.9,4503.8,0.2041]
[1756424345427,0.5086,4503.9,4503.8,0.3718]
[1756424346027,0.199,4503.9,4503.8,0.3718]
[1756424346228,0.4862,4503.9,4503.8,0.3718]
[1756424349338,0.2872,4504.9,4503.9,0.1663]
[1756424349534,0.4937,4504.7,4504.6,0.3573]
[1756424349828,1.58694828,4505.9,4504.7,0.1663]
[1756424349829,0.2872,4505.9,4504.7,0.1663]
[1756424350033,0.2872,4505.7,4504.7,0.1663]
[1756424350236,0.2872,4505.5,4504.7,0.1663]
[1756424350434,0.4937,4505.4,4505.3,0.191]
[1756424350629,0.4937,4505.4,4505.3,0.3573]
[1756424351227,1.19021121,4506.7,4505.3,0.3573]
[1756424351429,1.58694828,4507.2,4505.4,0.1663]
[1756424351430,0.2872,4506.6,4505.4,0.1663]
[1756424351738,0.2872,4506.4,4505.4,0.1663]
[1756424351930,0.2872,4506.2,4505.4,0.1663]
[1756424352129,0.57115411,4506.3,4505.4,0.1663]
[1756424352130,0.2872,4506.0,4505.4,0.1663]
[1756424352326,0.4937,4505.5,4505.4,0.3572]
[1756424352531,1.19021121,4506.8,4505.4,0.3572]
[1756424352737,0.85798319,4506.7,4505.5,0.1662]
[1756424353037,0.2872,4506.5,4505.5,0.1662]
[1756424353231,0.4937,4506.5,4506.4,0.191]
[1756424353843,0.4937,4506.5,4506.3,0.226]
[1756424354738,0.4937,4506.5,4506.4,0.191]
[1756424354739,0.2065,4506.5,4506.4,0.191]
[1756424355045,0.4937,4506.5,4506.3,0.226]
[1756424355345,0.4937,4506.4,4506.3,0.226]
[1756424355548,0.4937,4506.4,4506.3,0.417]
[1756424355942,0.2872,4506.1,4504.9,0.1662]
[1756424356153,0.2872,4507.6,4505.1,0.1662]
[1756424356456,0.2872,4507.4,4505.1,0.1662]
[1756424356654,0.2872,4507.2,4505.1,0.1662]
[1756424356856,1.19021121,4507.8,4505.1,0.1662]
[1756424356857,0.2872,4507.0,4505.1,0.1662]
[1756424357055,0.2872,4506.8,4505.1,0.1662]
[1756424357250,0.2872,4506.8,4505.1,0.3881]
[1756424357555,0.2872,4507.7,4505.2,0.1662]
[1756424357758,1.36482643,4507.8,4505.2,0.1662]
[1756424357759,0.2872,4507.5,4505.2,0.1662]
[1756424357957,0.2872,4507.3,4505.2,0.1662]
[1756424358158,0.2872,4507.1,4505.2,0.1662]
[1756424358458,0.2872,4506.9,4505.2,0.1662]
[1756424358956,0.4937,4505.3,4505.2,0.3572]
[1756424359158,0.4937,4505.3,4505.2,0.5832]
[1756424359354,0.2872,4507.4,4505.2,0.417]
[1756424359560,0.2872,4507.2,4505.3,0.1662]
[1756424359864,0.2872,4507.0,4505.3,0.1662]
[1756424360065,0.2872,4506.8,4505.3,0.1662]
[1756424360248,0.56839297,4506.7,4505.3,0.1662]
[1756424360562,0.2872,4506.5,4505.3,0.1662]
[1756424363459,0.2065,4505.4,4505.3,0.3572]
[1756424363649,0.4937,4505.4,4505.3,0.3572]
[1756424363853,0.4937,4505.4,4504.2,0.899]
[1756424364053,0.2872,4507.2,4504.4,0.1662]
[1756424364258,0.2872,4507.0,4504.4,0.1662]
[1756424364458,0.56801146,4506.9,4504.4,40.9662]
[1756424364759,0.2872,4506.7,4504.4,41.02193999]
[1756424364954,0.2872,4506.5,4504.5,0.1662]
[1756424365161,0.2872,4506.3,4504.5,0.1662]
[1756424365661,0.50916,4506.3,4504.5,0.1662]
[1756424368463,0.2872,4507.1,4504.6,0.1662]
[1756424368664,0.2872,4506.9,4504.6,0.1662]
[1756424368859,0.2872,4506.7,4504.7,0.22193]
[1756424369162,0.2872,4506.5,4504.8,0.1662]
[1756424369564,8.926,4507.2,4504.6,0.39956]
[1756424369861,0.2872,4507.0,4504.8,0.1662]
[1756424370061,0.2872,4506.8,4504.8,0.1662]
[1756424370263,0.2872,4506.6,4504.8,0.1662]
[1756424370464,0.2872,4506.6,4505.0,0.1662]
[1756424370658,0.4937,4505.2,4505.1,0.5832]
[1756424372466,0.2872,4507.2,4505.2,0.1662]
[1756424372667,0.2872,4507.0,4505.2,0.1662]
[1756424372964,0.2872,4506.8,4505.2,0.1662]
[1756424373354,1.36482643,4507.8,4505.2,0.22193]
[1756424373557,0.2872,4507.6,4505.3,0.1662]
[1756424373763,0.56935306,4507.5,4505.3,0.1662]
[1756424373964,0.2659,4507.7,4505.3,0.1662]
[1756424373965,0.85655306,4507.4,4505.3,0.1662]
[1756424374167,0.2872,4507.2,4505.3,0.1662]
[1756424374360,0.044,4507.7,4505.3,0.1662]
[1756424374361,0.2872,4507.0,4505.3,0.1662]
[1756424374562,0.2872,4506.8,4505.3,0.1662]
[1756424375663,0.2872,4507.7,4505.4,0.1662]
[1756424375871,0.2872,4507.5,4505.4,0.1662]
[1756424376070,0.2872,4507.3,4505.4,0.1662]
[1756424376273,0.2918,4507.1,4505.4,0.1662]
[1756424376570,0.2918,4506.9,4505.4,0.1662]
[1756424377271,0.57067657,4506.8,4505.4,0.1662]
[1756424377470,0.2918,4507.5,4505.4,0.1662]
[1756424377670,0.2918,4507.3,4505.4,0.1662]
[1756424377969,0.2918,4507.1,4505.4,0.1662]
[1756424378170,0.2918,4506.9,4505.4,0.1662]
[1756424378370,0.57067657,4507.0,4505.4,0.1662]
[1756424378371,0.2918,4506.7,4505.4,0.1662]
[1756424379366,0.57174464,4506.6,4505.4,0.1662]
[1756424379562,0.2918,4506.5,4505.4,0.1662]
[1756424380676,0.49896957,4506.1,4505.2,0.1669]
[1756424380870,0.2918,4506.0,4505.3,0.1669]
[1756424381071,0.2918,4506.0,4505.4,0.1669]
[1756424381272,0.4955,4506.0,4505.9,0.1996]
[1756424381470,0.4955,4506.0,4505.9,0.3665]
[1756424381871,0.00346957,4506.1,4505.9,0.1996]
[1756424382174,0.00346957,4506.1,4506.0,0.3665]
[1756424382175,0.49896957,4506.1,4506.0,0.3665]
[1756424382371,0.49896957,4506.1,4506.0,0.1996]
[1756424382770,0.49896957,4506.1,4505.7,0.1669]
[1756424382976,0.49896957,4506.1,4505.4,0.1669]
[1756424383172,0.2037,4505.4,4505.3,0.226]
[1756424383374,0.2918,4506.0,4505.3,0.4256]
[1756424383672,0.4955,4506.0,4505.9,0.1996]
[1756424383877,0.4955,4506.0,4505.7,0.1669]
[1756424384072,0.4955,4506.0,4505.4,0.1669]
[1756424384374,0.4955,4506.0,4505.3,0.226]
[1756424384671,0.2037,4505.1,4505.0,0.226]
[1756424384876,0.4955,4505.1,4505.0,0.226]
[1756424385177,0.2037,4504.9,4504.8,0.226]
[1756424385378,0.4955,4504.9,4504.8,0.226]
[1756424385775,0.4955,4504.9,4504.8,0.5925]
[1756424387679,0.2918,4504.9,4504.8,0.5925]
[1756424388370,0.00346957,4506.1,4504.9,0.1669]
[1756424388371,0.2918,4506.0,4504.9,0.1669]
[1756424389676,0.4955,4506.0,4505.9,0.3665]
[1756424392778,0.4955,4506.0,4505.6,0.3929]
[1756424392969,0.00346957,4506.1,4505.6,0.3929]
[1756424393177,0.4955,4505.7,4505.6,0.5925]
[1756424393381,0.4955,4505.7,4505.4,0.226]
[1756424396177,0.4955,4505.7,4504.8,1.98781868]
[1756424396481,0.00346957,4506.1,4504.1,72.784]
[1756424396482,0.2037,4504.8,4504.7,0.4246]
[1756424396681,0.4955,4504.8,4504.7,0.4246]
[1756424396885,0.4955,4504.8,4504.7,0.5915]
[1756424397083,0.00346957,4506.1,4504.7,0.5915]
[1756424397289,0.79371462,4506.0,4504.8,0.1669]
[1756424397486,0.4955,4504.9,4504.8,0.3665]
[1756424397882,0.4955,4504.9,4504.8,0.1996]
[1756424401188,0.4955,4504.9,4504.8,0.3665]
[1756424402287,0.4955,4504.9,4504.8,0.1996]
[1756424403490,0.2037,4504.2,4504.1,34.13871868]
[1756424403683,0.4955,4504.2,4504.1,32.3759]
[1756424403986,0.4955,4504.2,4504.1,32.209]
[1756424404190,0.4955,4504.2,4504.1,31.984]
[1756424404690,0.4955,4504.2,4504.1,32.1509]
[1756424405385,0.4955,4504.2,4504.1,31.984]
[1756424405781,0.2037,4503.4,4503.0,0.1669]
[1756424405983,0.4955,4503.0,4502.6,32.1379]
[1756424406190,0.502,4503.0,4502.9,0.5911]
[1756424406889,0.2983,4503.0,4502.9,0.5911]
[1756424407086,0.2983,4504.7,4503.0,0.1665]
[1756424407290,0.17443801,4505.4,4503.0,0.1665]
[1756424407291,0.2983,4504.5,4503.0,0.1665]
[1756424407790,0.2983,4504.3,4503.0,0.1665]
[1756424408288,0.2983,4505.7,4503.0,0.1665]
[1756424408482,0.2983,4505.5,4503.8,0.1665]
[1756424408788,0.2983,4505.5,4504.0,0.1665]
[1756424408991,0.52030001,4505.5,4504.0,0.1665]
[1756424409189,0.5049,4504.1,4504.0,0.1976]
[1756424409388,0.5049,4504.1,4504.0,0.2816]
[1756424409788,0.2983,4506.0,4504.0,0.2816]
[1756424410090,0.2983,4505.8,4504.1,0.1665]
[1756424410491,0.22198,4505.7,4504.1,0.1665]
[1756424410693,0.2983,4505.9,4504.1,0.1665]
[1756424410990,0.2983,4505.7,4504.1,0.1665]
[1756424411489,0.2983,4505.5,4504.1,0.1665]
[1756424414488,0.2066,4504.2,4504.1,0.3641]
[1756424414688,0.5049,4504.2,4504.1,0.3641]
[1756424415989,0.2983,4506.0,4504.2,0.1663]
[1756424416192,0.2983,4505.8,4504.2,0.1663]
[1756424416388,0.00346957,4506.1,4504.0,0.084]
[1756424416596,0.86786416,4506.0,4504.1,0.1663]
[1756424416796,0.2983,4505.9,4504.3,0.1663]
[1756424418592,0.00346957,4506.1,4504.3,0.39959]
[1756424418799,1.08995039,4506.0,4504.4,0.39957]
[1756424418989,0.2983,4505.9,4504.5,0.1663]
[1756424420503,0.2066,4504.1,4504.0,0.3639]
[1756424420694,0.5049,4504.1,4504.0,0.5889]
[1756424421198,0.00346957,4506.1,4504.1,0.1663]
[1756424421393,1.09009576,4506.0,4504.1,0.1663]
[1756424421600,0.5049,4504.2,4504.1,0.3639]
[1756424422601,0.2983,4506.0,4504.1,0.1976]
[1756424422901,0.2983,4505.8,4504.2,0.1663]
[1756424423292,0.56995205,4505.7,4504.2,0.1663]
[1756424423494,0.2983,4505.7,4504.2,0.1663]
[1756424423895,0.2066,4504.3,4504.2,0.1663]
[1756424424097,0.5049,4504.3,4504.2,0.3639]
[1756424425596,0.00346957,4506.1,4504.2,0.3639]
[1756424425900,1.09037664,4506.0,4504.3,0.1663]
[1756424426100,0.57010664,4505.9,4504.3,0.1663]
[1756424426301,1.09037664,4505.8,4504.3,0.1663]
[1756424426502,0.57010664,4505.7,4504.3,0.1663]
[1756424426701,0.2983,4505.6,4504.3,0.1663]
[1756424432107,0.5049,4504.4,4504.3,0.3639]
[1756424432404,0.5049,4504.4,4504.3,0.5889]
[1756424437716,0.2983,4504.4,4504.3,0.5889]
[1756424441514,0.00346957,4506.1,4504.3,0.4226]
[1756424441715,0.29,4505.9,4504.4,0.1665]
[1756424441915,0.29,4505.7,4504.4,0.1665]
[1756424442214,0.29,4505.5,4504.4,0.1665]
[1756424442419,0.29,4505.3,4504.4,0.1665]
[1756424443121,0.4789,4504.5,4504.4,0.3619]
[1756424446919,0.4789,4504.5,4504.3,0.225]
[1756424447121,0.4789,4504.1,4504.0,1.98781868]
[1756424447325,0.4789,4504.1,4503.8,0.225]
[1756424447825,0.4789,4503.9,4503.8,0.225]
[1756424448020,0.68685597,4503.9,4503.8,0.225]
[1756424448423,0.20795597,4503.9,4503.8,0.5869]
[1756424448728,0.29,4504.8,4503.8,5.04206]
[1756424448929,0.29,4504.8,4504.7,0.3619]
[1756424448930,0.4789,4504.8,4504.7,0.3619]
[1756424449131,0.4789,4504.8,4504.7,0.5869]
[1756424450129,0.4789,4504.8,4504.7,0.225]
[1756424450719,0.68675777,4504.8,4504.7,0.5869]
[1756424454131,0.20785777,4504.8,4504.7,0.5869]
[1756424454525,0.49785777,4504.8,4504.7,0.5869]
[1756424454825,0.20785777,4504.8,4504.7,0.5869]
[1756424455328,0.49785777,4504.8,4504.7,0.5869]
[1756424455631,0.68675777,4504.8,4504.7,0.225]
[1756424455930,0.68675777,4504.8,4504.7,0.5869]
[1756424456732,0.68675777,4504.8,4504.2,1.99633684]
[1756424456932,0.4789,4504.4,4504.3,0.4204]
[1756424457133,0.67805997,4504.4,4504.3,0.4204]
[1756424457431,0.19915997,4504.4,4504.3,0.5869]
[1756424457732,0.19916015,4504.4,4504.3,0.5869]
[1756424458233,0.67806015,4504.4,4504.3,0.5869]
[1756424458929,0.29,4504.3,4504.2,1.99633684]
[1756424459130,0.29,4504.2,4504.0,1.99633684]
[1756424459430,0.4789,4504.2,4504.1,0.225]
[1756424459732,0.4789,4505.4,4504.1,0.44702]
[1756424459933,0.4789,4505.4,4504.6,1.99633684]
[1756424460127,0.29,4505.3,4504.7,2.22133684]
[1756424460332,0.18220594,4507.0,4504.7,43.02133684]
[1756424460534,0.4789,4504.8,4504.7,42.79633684]
[1756424460731,0.4789,4504.8,4504.7,41.025]
[1756424460931,0.4789,4504.8,4504.7,0.225]
[1756424464134,0.4789,4504.0,4503.9,1.99633684]
[1756424464337,0.4789,4504.0,4503.9,2.22133684]
[1756424465237,0.4789,4504.0,4503.9,1.99633684]
[1756424465437,0.4789,4504.0,4503.7,31.975]
[1756424465638,0.4789,4503.6,4503.5,1.99633684]
[1756424465939,0.4789,4503.6,4503.5,0.225]
[1756424467137,0.4938,4503.5,4503.4,0.225]
[1756424470840,0.1997,4503.5,4502.6,1.99633684]
[1756424471044,0.051,4505.0,4502.3,41.19976]
[1756424471045,0.2941,4502.6,4502.5,1.99633684]
[1756424471246,0.2941,4502.6,4502.5,2.22133684]
[1756424471541,0.4938,4502.6,4502.5,0.225]
[1756424471736,0.4938,4502.6,4502.4,1.99633684]
[1756424471942,0.051,4505.0,4502.2,31.974]
[1756424471943,0.68640194,4502.5,4502.2,31.974]
[1756424472246,0.68640194,4502.4,4502.3,0.225]
[1756424473541,0.1997,4501.5,4501.4,40.8]
[1756424473740,0.4938,4501.5,4501.4,41.025]
[1756424473941,0.4938,4501.5,4501.4,0.225]
[1756424475249,0.2941,4501.4,4500.7,33.97533684]
[1756424475446,0.4938,4501.4,4500.8,0.225]
[1756424476149,0.05,4503.4,4500.8,0.225]
[1756424476351,0.19203723,4503.3,4500.8,0.62489]
[1756424476539,0.2941,4503.1,4500.8,0.225]
[1756424476740,0.19196329,4503.0,4501.1,0.39986]
[1756424476947,0.2941,4502.8,4501.2,0.225]
[1756424477245,0.19196329,4502.7,4501.2,0.44710999]
[1756424477447,0.051,4503.6,4501.2,0.44710999]
[1756424477448,0.19196329,4502.6,4501.2,0.44710999]
[1756424477648,0.19196329,4502.5,4501.2,0.44710999]
[1756424477849,0.2941,4502.3,4501.2,0.44710999]
[1756424478051,0.2941,4502.1,4501.2,0.44710999]
[1756424478245,0.51620001,4503.5,4501.2,41.2471]
[1756424478451,0.2941,4503.3,4501.2,41.2471]
[1756424478652,0.19190003,4503.2,4501.2,41.2471]
[1756424478853,0.19190003,4503.1,4501.2,41.2471]
[1756424479052,0.2941,4502.9,4501.2,41.2471]
[1756424479346,0.19190003,4502.8,4501.3,0.22210999]
[1756424479546,0.48600003,4502.7,4501.3,0.22210999]
[1756424479749,0.48600003,4502.6,4501.2,41.42486]
[1756424479950,0.2941,4502.4,4501.3,0.22210999]
[1756424480144,0.39160003,4502.3,4501.3,0.22210999]
[1756424480342,0.2941,4502.2,4501.2,41.42486]
[1756424480542,0.40366278,4503.8,4501.2,41.0221]
[1756424480745,0.2941,4503.6,4501.3,0.225]
[1756424480942,0.19190533,4503.5,4501.3,0.225]
[1756424481142,0.48600533,4503.4,4501.3,0.225]
[1756424481345,0.2941,4503.2,4501.3,0.225]
[1756424481555,0.2941,4503.0,4501.3,0.225]
[1756424481848,0.19190533,4502.9,4501.3,0.62485]
[1756424482047,0.2941,4502.7,4501.4,0.39984]
[1756424482247,0.19190533,4502.6,4501.4,0.39984]
[1756424482449,0.19190533,4502.5,4501.4,0.39984]
[1756424482754,0.4938,4502.3,4501.4,0.39984]
[1756424483048,0.2941,4502.2,4501.4,0.39984]
[1756424483248,0.2941,4502.2,4501.3,0.225]
[1756424483448,0.4938,4502.2,4501.3,0.225]
[1756424483654,0.4938,4502.2,4501.3,0.62485]
[1756424484255,0.05,4504.1,4501.5,0.39983]
[1756424484451,0.19191145,4504.0,4501.8,0.3998]
[1756424484655,0.48601145,4503.9,4501.9,0.097]
[1756424484856,0.19191145,4503.8,4501.9,0.097]
[1756424485054,0.2941,4503.6,4501.9,0.097]
[1756424485253,0.2941,4503.4,4501.9,0.097]
[1756424485556,0.2941,4503.2,4501.9,0.097]
[1756424485754,0.2941,4503.0,4501.9,0.097]
[1756424485952,0.2941,4502.8,4501.9,0.097]
[1756424486152,0.19191145,4502.7,4501.9,0.097]
[1756424486347,0.2941,4502.5,4501.9,0.097]
[1756424486555,0.4938,4502.5,4501.9,0.097]
[1756424487553,0.05,4504.4,4501.9,0.097]
[1756424487554,0.2941,4504.4,4501.9,0.097]
[1756424487852,0.19282421,4504.3,4502.3,0.39975]
[1756424488057,0.2941,4504.1,4502.4,0.39975]
[1756424488253,0.19282421,4504.2,4501.9,1.09649]
[1756424488254,0.2941,4503.9,4502.7,0.39973]
[1756424488454,0.2941,4503.7,4502.7,0.39973]
[1756424488653,0.4938,4503.5,4502.8,0.39972]
[1756424488856,0.19282421,4503.4,4502.8,0.39972]
[1756424489052,0.19282421,4503.4,4502.9,0.39971]
[1756424489453,0.4938,4503.7,4502.5,1.04435]
[1756424489754,0.4938,4504.0,4503.4,0.39966]
[1756424489956,0.4938,4504.0,4502.8,0.9993]
[1756424489957,0.2941,4503.9,4503.5,0.62466]
[1756424490350,0.2941,4503.9,4503.6,0.39965]
[1756424491068,31.974,4505.7,4503.5,0.225]
[1756424491256,0.19298548,4505.6,4503.8,0.39962]
[1756424491456,0.03,4506.3,4503.8,0.39962]
[1756424491457,0.2941,4505.4,4503.8,0.39962]
[1756424491658,0.19298548,4505.3,4503.8,0.39962]
[1756424491859,0.19298548,4505.2,4503.9,0.39962]
[1756424492062,0.19298548,4505.1,4503.9,0.39962]
[1756424492359,0.19298548,4505.0,4503.9,0.39962]
[1756424492558,0.19298548,4504.9,4503.9,0.39962]
[1756424492759,0.19298548,4504.8,4503.6,0.39964]
[1756424492958,0.19298548,4504.7,4503.8,0.39963]
[1756424493158,0.19298548,4504.6,4503.8,0.39963]
[1756424493454,0.22199,4506.0,4503.8,0.39963]
[1756424493652,0.2941,4505.8,4503.9,0.39962]
[1756424493864,0.19306436,4505.7,4504.0,0.39961]
[1756424494060,0.2941,4505.5,4504.0,0.39961]
[1756424494256,0.19306436,4505.4,4504.0,0.39961]
[1756424494564,0.19306436,4505.3,4504.2,0.39959]
[1756424494755,0.48716436,4505.2,4504.3,0.139]
[1756424494959,0.2941,4505.0,4504.3,0.139]
[1756424495159,0.2941,4504.8,4504.3,0.139]
[1756424495365,0.19306436,4504.7,4504.3,0.139]
[1756424495566,0.39276436,4504.6,4504.3,0.139]
[1756424495761,0.2941,4504.5,4504.3,0.139]
[1756424495964,0.22196,4506.3,4504.3,0.139]
[1756424496268,0.286,4506.1,4504.3,0.53858]
[1756424496462,0.19298736,4506.0,4504.3,0.53858]
[1756424496657,0.286,4505.8,4504.3,0.139]
[1756424496862,0.286,4505.6,4504.3,0.53858]
[1756424497062,0.19298736,4505.5,4504.3,0.53858]
[1756424497263,0.286,4505.3,4504.3,0.53858]
[1756424497463,0.286,4505.1,4504.3,0.53858]
[1756424497668,0.38371345,4505.0,4504.3,0.53858]
[1756424497870,0.66971345,4504.9,4504.3,0.53858]
[1756424498069,0.4769,4504.9,4504.3,0.139]
[1756424498862,0.286,4504.8,4504.4,0.225]
[1756424499062,0.4769,4504.5,4504.4,0.225]
[1756424499258,0.1909,4504.5,4504.1,31.982]
[1756424499464,0.4769,4504.3,4504.2,0.225]
[1756424499869,0.4769,4504.3,4504.2,41.025]
[1756424500169,0.4769,4504.3,4504.2,0.225]
[1756424500768,0.4769,4504.3,4504.1,72.782]
[1756424500969,0.4769,4504.3,4504.2,0.225]
[1756424502666,0.048,4506.7,4504.2,0.225]
[1756424502863,0.286,4506.5,4504.2,0.225]
[1756424503065,0.286,4506.3,4504.2,0.225]
[1756424503266,0.1909,4504.3,4504.2,0.225]
[1756424503567,0.1909,4504.3,4504.1,31.982]
[1756424503763,0.44308089,4506.8,4503.1,1.99633684]
[1756424503764,0.1909,4503.2,4503.1,1.99633684]
[1756424503968,0.1909,4503.2,4503.1,0.225]
[1756424504268,0.286,4503.2,4503.1,0.225]
[1756424504469,0.019,4505.6,4503.1,0.225]
[1756424504669,0.1909,4503.2,4503.1,0.225]
[1756424504867,0.4769,4502.7,4502.6,40.8]
[1756424505174,0.4769,4502.7,4502.6,0.225]
[1756424505362,0.286,4506.2,4503.3,0.39967]
[1756424505567,0.286,4506.0,4503.4,0.225]
[1756424505774,0.19262363,4505.9,4503.5,0.39965]
[1756424505966,0.286,4505.7,4503.5,0.39965]
[1756424506167,0.286,4505.5,4503.4,0.225]
[1756424506367,0.286,4505.3,4503.4,0.225]
[1756424506569,0.286,4505.1,4503.4,0.225]
[1756424506765,0.286,4504.9,4503.4,0.225]
[1756424506973,0.19262363,4504.8,4503.4,0.225]
[1756424507175,0.47862363,4504.7,4503.4,0.225]
[1756424507367,0.286,4504.5,4503.4,0.62466]
[1756424507572,0.19262363,4504.4,4503.4,0.62466]
[1756424507768,0.286,4504.2,4503.4,0.62466]
[1756424507974,0.22199,4505.9,4503.4,0.62466]
[1756424508172,0.4787092,4505.8,4503.4,0.62466]
[1756424508370,0.1927092,4505.7,4503.4,0.62466]
[1756424508571,0.286,4505.5,4503.4,0.62466]
[1756424508776,0.286,4505.3,4503.4,0.62466]